[Event "4NCL Div 2 2024-25"]
[Site "England"]
[Date "2024.11.23"]
[Round "1.17"]
[White "Bisby, Daniel L"]
[Black "Chan, Sheng Liang Bernard"]
[Result "1-0"]
[ECO "B12"]
[WhiteElo "2290"]
[BlackElo "2101"]
[Annotator "RC"]
[PlyCount "59"]
[EventDate "2024.11.23"]
[EventType "team-tourn"]
[EventCountry "ENG"]
[SourceTitle "playchess.com"]
[Source "ChessBase"]
[SourceQuality "1"]
[TimeControl "40/6000+30:3000+30"]

1. e4 {[%emt 0:10:41]} c6 {[%emt 0:10:39]} 2. d4 {[%emt 0:00:44]} d5 {[%emt 0:00:08]} 3. e5 {[%emt 0:00:34]} c5 {[%emt 0:00:12]} 4. dxc5 {[%emt 0:01:59]} e6 {[%emt 0:00:47]} 5. Qh5 {[%emt 0:04:19]} Bxc5 {[%emt 0:03:55]} 6. Nf3 {[%emt 0:04:04]} Nc6 {[%emt 0:05:34]} 7. Bd3 {[%emt 0:10:20]} Nb4 {[%emt 0:02:46]} 8. Nc3 {[%emt 0:03:02]} Bd7 {[%emt 0:09:11]} 9. O-O {[%emt 0:03:51]} Nxd3 {[%emt 0:03:20]} 10. cxd3 {[%emt 0:00:07]} Ne7 {[%emt 0:05:49]} 11. Be3 {[%emt 0:14:02]} Bb6 {[%emt 0:17:07]} 12. a4 {[%emt 0:11:33]} O-O {[%emt 0:05:43]} 13. Bg5 {[%emt 0:12:27]} Qe8 {[%emt 0:01:17]} 14. a5 {[%emt 0:03:06]} Bc7 {[%emt 0:02:25]} 15. Rfc1 {[%emt 0:05:15]} Rc8 {[%emt 0:03:02]} 16. Qg4 {[%emt 0:01:13]} Ng6 {[%emt 0:01:23]} 17. Re1 {[%emt 0:01:02]} Bb5 {[%emt 0:07:58]} 18. h4 {[%emt 0:01:34]} h5 {[%emt 0:13:43]} 19. Qxh5 {[%emt 0:01:09]} Bxd3 {[%emt 0:00:12]} 20. Rad1 {[%emt 0:03:16]} Bc2 {[%emt 0:07:02]} 21. Rd2 {[%emt 0:00:54]} Be4 {[%emt 0:01:26]} 22. Nxe4 {[%emt 0:03:53]} dxe4 {[%emt 0:00:01]} 23. Rxe4 {[%emt 0:00:14]} Bxa5 {[%emt 0:00:03]} 24. b4 {[%emt 0:03:52]} Bb6 {[%emt 0:00:46]} 25. Bf6 {[%emt 0:02:01]} Rc1+ {[%emt 0:07:01]} 26. Kh2 {[%emt 0:00:14]} gxf6 {[%emt 0:01:27]} 27. exf6 {[%emt 0:00:13]} Bc7+ {[%emt 0:00:22]} 28. g3 {[%emt 0:00:29]} Qa4 {[%emt 0:00:37]} 29. Qh6 {[%emt 0:03:23]} Rh1+ {[%emt 0:00:06]} 30. Kg2 {[%emt 0:00:39]} 1-0

[Event "4NCL Div 2 2024-25"]
[Site "England"]
[Date "2024.11.23"]
[Round "1.18"]
[White "Townsend, M Paul"]
[Black "Manmay Chopra"]
[Result "1-0"]
[ECO "A25"]
[WhiteElo "2125"]
[BlackElo "2217"]
[Annotator "RC"]
[PlyCount "107"]
[EventDate "2024.11.23"]
[EventType "team-tourn"]
[EventCountry "ENG"]
[SourceTitle "playchess.com"]
[Source "ChessBase"]
[SourceQuality "1"]
[TimeControl "40/6000+30:3000+30"]

1. c4 {[%emt 0:10:14]} e5 {[%emt 0:10:20]} 2. Nc3 {[%emt 0:00:16]} Nc6 {[%emt 0:00:08]} 3. e3 {[%emt 0:00:20]} g6 {[%emt 0:02:10]} 4. d4 {[%emt 0:02:48]} Bg7 {[%emt 0:01:43]} 5. Nf3 {[%emt 0:00:25]} d6 {[%emt 0:01:02]} 6. Be2 {[%emt 0:00:34]} Nge7 {[%emt 0:02:19]} 7. d5 {[%emt 0:03:43]} Nb8 {[%emt 0:00:24]} 8. e4 {[%emt 0:02:09]} a5 {[%emt 0:02:36]} 9. a3 {[%emt 0:12:48]} h6 {[%emt 0:15:05]} 10. O-O {[%emt 0:05:25]} O-O {[%emt 0:03:02]} 11. Ne1 {[%emt 0:14:32]} f5 {[%emt 0:01:39]} 12. Nd3 {[%emt 0:02:04]} b6 {[%emt 0:16:16]} 13. exf5 {[%emt 0:07:20]} Bxf5 {[%emt 0:01:25]} 14. g4 {[%emt 0:02:29]} Bxd3 {[%emt 0:12:21]} 15. Bxd3 {[%emt 0:00:14]} Na6 {[%emt 0:00:27]} 16. Be3 {[%emt 0:05:13]} Qd7 {[%emt 0:08:46]} 17. f3 {[%emt 0:07:07]} Kh8 {[%emt 0:10:54]} 18. Kg2 {[%emt 0:03:41]} Qe8 {[%emt 0:01:53]} 19. Bc2 {[%emt 0:06:28]} Qf7 {[%emt 0:01:35]} 20. Qd2 {[%emt 0:02:25]} Ng8 {[%emt 0:00:42]} 21. f4 {[%emt 0:04:02]} Qd7 {[%emt 0:07:24]} 22. f5 {[%emt 0:00:53]} gxf5 {[%emt 0:00:48]} 23. Bxf5 {[%emt 0:01:12]} Qe7 {[%emt 0:00:01]} 24. Bc2 {[%emt 0:02:28]} Nc5 {[%emt 0:01:02]} 25. h3 {[%emt 0:06:28]} a4 {[%emt 0:02:12]} 26. Rxf8 {[%emt 0:00:48]} Bxf8 {[%emt 0:01:14]} 27. Qf2 {[%emt 0:03:31]} Qg7 {[%emt 0:02:12]} 28. Rf1 {[%emt 0:00:29]} Be7 {[%emt 0:00:43]} 29. Qf7 {[%emt 0:00:40]} Bf6 {[%emt 0:03:07]} 30. Qxg7+ {[%emt 0:02:37]} Kxg7 {[%emt 0:00:02]} 31. Nb5 {[%emt 0:00:30]} Bd8 {[%emt 0:00:57]} 32. Nc3 {[%emt 0:00:56]} Nf6 {[%emt 0:00:46]} 33. Bxc5 {[%emt 0:00:21]} bxc5 {[%emt 0:00:08]} 34. Bxa4 {[%emt 0:00:26]} Rb8 {[%emt 0:00:47]} 35. Rf2 {[%emt 0:00:48]} Nh7 {[%emt 0:00:40]} 36. Bc2 {[%emt 0:01:04]} Bh4 {[%emt 0:00:30]} 37. Re2 {[%emt 0:00:33]} Nf8 {[%emt 0:00:58]} 38. Bf5 {[%emt 0:00:29]} Bd8 {[%emt 0:00:34]} 39. Nb5 {[%emt 0:00:25]} Rb6 {[%emt 0:00:08]} 40. a4 {[%emt 0:00:45]} Ra6 {[%emt 0:00:27]} 41. b3 {[%emt 0:50:21]} Ra5 {[%emt 0:26:52]} 42. Kf3 {[%emt 0:00:00]} Kf6 {[%emt 0:00:21]} 43. Ke4 {[%emt 0:00:00]} Kg5 {[%emt 0:04:50]} 44. h4+ {[%emt 0:00:00]} Kf6 {[%emt 0:01:39]} 45. Rf2 {[%emt 0:00:00]} Kg7 {[%emt 0:00:21]} 46. h5 {[%emt 0:00:00]} Ra8 {[%emt 0:04:21]} 47. Be6 {[%emt 0:00:00]} Nh7 {[%emt 0:00:06]} 48. Rf7+ {[%emt 0:00:00]} Kh8 {[%emt 0:00:02]} 49. Kf5 {[%emt 0:00:00]} Bh4 {[%emt 0:01:21]} 50. Rxc7 {[%emt 0:00:00]} Rf8+ {[%emt 0:01:51]} 51. Rf7 {[%emt 0:00:00]} Rxf7+ {[%emt 0:00:25]} 52. Bxf7 {[%emt 0:00:00]} e4 {[%emt 0:00:01]} 53. a5 {[%emt 0:00:00]} e3 {[%emt 0:00:17]} 54. a6 {[%emt 0:00:00]} 1-0

[Event "4NCL Div 2 2024-25"]
[Site "England"]
[Date "2024.11.23"]
[Round "1.19"]
[White "Sivanandan, Bodhana"]
[Black "Arnott, Jonathan W"]
[Result "1/2-1/2"]
[ECO "C03"]
[WhiteElo "2082"]
[BlackElo "2087"]
[Annotator "NA RC"]
[PlyCount "73"]
[EventDate "2024.11.23"]
[EventType "team-tourn"]
[EventCountry "ENG"]
[SourceTitle "playchess.com"]
[Source "ChessBase"]
[SourceQuality "1"]
[TimeControl "40/6000+30:3000+30"]

1. e4 {[%emt 0:10:04]} e6 {[%emt 0:10:10]} 2. d4 {[%emt 1:31:26]} d5 {[%emt 0:00:08]} 3. Nd2 {[%emt 0:00:00]} a5 {[%emt 0:00:29]} 4. Ngf3 {[%emt 0:00:00]} Nf6 {[%emt 0:02:22]} 5. exd5 {[%emt 0:00:00]} exd5 {[%emt 0:00:47]} 6. Bd3 {[%emt 0:00:00]} Bd6 {[%emt 0:01:21]} 7. O-O {[%emt 0:00:00]} O-O {[%emt 0:00:20]} 8. Re1 {[%emt 0:00:00]} Nc6 {[%emt 0:05:39]} 9. c3 {[%emt 0:00:00]} Ne7 {[%emt 0:00:16]} 10. Nf1 {[%emt 0:00:00]} Bf5 {[%emt 0:06:49]} 11. Bxf5 {[%emt 0:00:00]} Nxf5 {[%emt 0:00:08]} 12. Bg5 {[%emt 0:00:00]} h6 {[%emt 0:02:26]} 13. Bxf6 {[%emt 0:00:00]} Qxf6 {[%emt 0:00:04]} 14. Qd3 {[%emt 0:00:00]} c6 {[%emt 0:03:58]} 15. Ne3 {[%emt 0:00:00]} Nh4 {[%emt 0:09:24]} 16. Nxh4 {[%emt 0:00:00]} Qxh4 {[%emt 0:00:09]} 17. g3 {[%emt 0:00:00]} Qf6 {[%emt 0:01:57]} 18. Qf5 {[%emt 0:00:00]} Qe6 {[%emt 0:02:56]} 19. Qxe6 {[%emt 0:00:00]} fxe6 {[%emt 0:03:51]} 20. Ng4 {[%emt 0:00:00]} Rae8 {[%emt 0:03:03]} 21. Re2 {[%emt 0:00:00]} Rf5 {[%emt 0:01:53]} 22. Rae1 {[%emt 0:00:00]} Kf7 {[%emt 0:00:10]} 23. f4 {[%emt 0:00:00]} Re7 {[%emt 0:02:53]} 24. Kg2 {[%emt 0:00:00]} h5 {[%emt 0:07:55]} 25. Ne5+ {[%emt 0:00:00]} Bxe5 {[%emt 0:00:19]} 26. Rxe5 {[%emt 0:00:00]} Rxe5 {[%emt 0:01:02]} 27. Rxe5 {[%emt 0:00:00]} g6 {[%emt 0:00:04]} 28. Kf3 {[%emt 0:00:00]} b5 {[%emt 0:01:46]} 29. Re2 {[%emt 0:00:00]} Rc7 {[%emt 0:01:51]} 30. h3 {[%emt 0:00:00]} c5 {[%emt 0:01:04]} 31. Ke3 {[%emt 0:00:00]} Kf6 {[%emt 0:03:56]} 32. Rd2 {[%emt 0:00:00]} c4 {[%emt 0:03:48]} 33. Rh2 {[%emt 0:00:00]} Rh7 {[%emt 0:01:31]} 34. Rh1 {[%emt 0:00:00]} Rh8 {[%emt 0:02:04]} 35. Rh2 {[%emt 0:00:00]} Rh7 {[%emt 0:00:05]} 36. Rh1 {[%emt 0:00:00]} Rh8 {[%emt 0:00:03]} 37. Rh2 {[%emt 0:00:00]} 1/2-1/2

[Event "4NCL Div 2 2024-25"]
[Site "England"]
[Date "2024.11.23"]
[Round "1.20"]
[White "Gayson, Peter M"]
[Black "Hill, Alistair"]
[Result "0-1"]
[ECO "C03"]
[WhiteElo "2087"]
[BlackElo "2076"]
[Annotator "NA RC"]
[PlyCount "100"]
[EventDate "2024.11.23"]
[EventType "team-tourn"]
[EventCountry "ENG"]
[SourceTitle "playchess.com"]
[Source "ChessBase"]
[SourceQuality "1"]
[TimeControl "40/6000+30:3000+30"]

1. e4 {[%emt 0:10:05]} e6 {[%emt 0:10:11]} 2. d4 {[%emt 0:00:15]} d5 {[%emt 0:00:06]} 3. Nd2 {[%emt 0:00:26]} Be7 {[%emt 0:00:05]} 4. Ngf3 {[%emt 0:00:47]} Nf6 {[%emt 0:00:07]} 5. e5 {[%emt 0:00:25]} Nfd7 {[%emt 0:00:05]} 6. Bd3 {[%emt 0:00:24]} c5 {[%emt 0:00:04]} 7. c3 {[%emt 0:00:23]} b6 {[%emt 0:00:34]} 8. O-O {[%emt 0:02:11]} Ba6 {[%emt 0:00:12]} 9. Bxa6 {[%emt 0:03:15]} Nxa6 {[%emt 0:00:04]} 10. Qe2 {[%emt 0:00:20]} Qc8 {[%emt 0:14:34]} 11. a3 {[%emt 0:00:48]} O-O {[%emt 0:00:47]} 12. h4 {[%emt 0:01:11]} Nab8 {[%emt 0:03:05]} 13. h5 {[%emt 0:03:13]} h6 {[%emt 0:05:40]} 14. Re1 {[%emt 0:16:32]} cxd4 {[%emt 0:00:32]} 15. cxd4 {[%emt 0:05:48]} Qc2 {[%emt 0:02:28]} 16. Qe3 {[%emt 0:08:40]} Nc6 {[%emt 0:12:07]} 17. Nf1 {[%emt 0:09:45]} Na5 {[%emt 0:01:25]} 18. Re2 {[%emt 0:02:45]} Qh7 {[%emt 0:23:20]} 19. b4 {[%emt 0:06:43]} Nc4 {[%emt 0:00:46]} 20. Qb3 {[%emt 0:06:08]} a5 {[%emt 0:01:49]} 21. Qa4 {[%emt 0:04:44]} Rfd8 {[%emt 0:03:12]} 22. b5 {[%emt 0:01:38]} Nf8 {[%emt 0:00:49]} 23. Rc2 {[%emt 0:04:02]} Rdc8 {[%emt 0:01:21]} 24. Ne3 {[%emt 0:11:16]} Nxe3 {[%emt 0:02:27]} 25. Rxc8 {[%emt 0:01:31]} Rxc8 {[%emt 0:00:05]} 26. Bxe3 {[%emt 0:00:27]} Qd3 {[%emt 0:07:51]} 27. Ne1 {[%emt 0:02:32]} Qe2 {[%emt 0:07:14]} 28. Qb3 {[%emt 0:03:17]} Qxh5 {[%emt 0:02:26]} 29. Rc1 {[%emt 0:01:14]} Rxc1 {[%emt 0:00:26]} 30. Bxc1 {[%emt 0:00:05]} Qe2 {[%emt 0:00:33]} 31. Qc3 {[%emt 0:01:20]} Qxb5 {[%emt 0:01:15]} 32. Qc7 {[%emt 0:01:46]} Qc4 {[%emt 0:02:32]} 33. Qxc4 {[%emt 0:01:34]} dxc4 {[%emt 0:00:04]} 34. a4 {[%emt 0:00:08]} f6 {[%emt 0:05:36]} 35. Nc2 {[%emt 0:01:17]} fxe5 {[%emt 0:00:12]} 36. dxe5 {[%emt 0:00:05]} Nd7 {[%emt 0:00:16]} 37. f4 {[%emt 0:01:06]} g5 {[%emt 0:02:21]} 38. Ne3 {[%emt 0:00:45]} Bc5 {[%emt 0:00:19]} 39. Kf1 {[%emt 0:00:15]} Bxe3 {[%emt 0:00:41]} 40. Bxe3 {[%emt 0:00:06]} gxf4 {[%emt 0:00:09]} 41. Bxf4 {[%emt 0:50:22]} Kg7 {[%emt 0:50:30]} 42. Be3 {[%emt 0:01:01]} Kg6 {[%emt 0:00:42]} 43. Ke2 {[%emt 0:00:28]} Nc5 {[%emt 0:00:22]} 44. Bxc5 {[%emt 0:00:00]} bxc5 {[%emt 0:00:00]} 45. Kd2 {[%emt 0:00:00]} Kf5 {[%emt 0:00:00]} 46. Kc3 {[%emt 0:00:00]} Kxe5 {[%emt 0:00:00]} 47. Kxc4 {[%emt 0:00:00]} Kd6 {[%emt 0:00:00]} 48. Kb5 {[%emt 0:00:00]} e5 {[%emt 0:00:00]} 49. Kxa5 {[%emt 0:00:00]} e4 {[%emt 0:00:00]} 50. Kb6 {[%emt 0:00:00]} e3 {[%emt 0:00:00]} 0-1

[Event "4NCL Div 2 2024-25"]
[Site "England"]
[Date "2024.11.23"]
[Round "1.21"]
[White "Starley, Robert"]
[Black "Dunn, Andrew M"]
[Result "1/2-1/2"]
[ECO "B12"]
[WhiteElo "2036"]
[BlackElo "2117"]
[Annotator "NA RC"]
[PlyCount "54"]
[EventDate "2024.11.23"]
[EventType "team-tourn"]
[EventCountry "ENG"]
[SourceTitle "playchess.com"]
[Source "ChessBase"]
[SourceQuality "1"]
[TimeControl "40/6000+30:3000+30"]

1. e4 {[%emt 0:10:02]} c6 {[%emt 0:10:09]} 2. d4 {[%emt 0:00:05]} d5 {[%emt 0:00:07]} 3. e5 {[%emt 0:00:08]} Bf5 {[%emt 0:00:25]} 4. h4 {[%emt 0:00:06]} h5 {[%emt 0:00:32]} 5. Bd3 {[%emt 0:00:16]} Bxd3 {[%emt 0:02:26]} 6. Qxd3 {[%emt 0:00:05]} e6 {[%emt 0:00:57]} 7. Bg5 {[%emt 0:00:10]} Qb6 {[%emt 0:05:10]} 8. b3 {[%emt 0:00:36]} Qa6 {[%emt 0:06:58]} 9. c4 {[%emt 0:00:50]} Bb4+ {[%emt 0:01:45]} 10. Nd2 {[%emt 0:01:17]} Nd7 {[%emt 0:03:53]} 11. Ngf3 {[%emt 0:01:05]} Ne7 {[%emt 0:03:17]} 12. O-O {[%emt 0:01:11]} Nf5 {[%emt 0:09:51]} 13. a3 {[%emt 0:02:02]} Bxd2 {[%emt 0:07:57]} 14. Nxd2 {[%emt 0:03:07]} O-O {[%emt 0:09:18]} 15. Nf3 {[%emt 0:06:25]} Nb6 {[%emt 0:06:57]} 16. Rfc1 {[%emt 0:01:26]} Rac8 {[%emt 0:02:59]} 17. Qf1 {[%emt 0:03:11]} dxc4 {[%emt 0:03:45]} 18. b4 {[%emt 0:03:28]} Nd5 {[%emt 0:03:55]} 19. Qxc4 {[%emt 0:02:53]} Qxc4 {[%emt 0:00:08]} 20. Rxc4 {[%emt 0:00:05]} f6 {[%emt 0:00:45]} 21. Bd2 {[%emt 0:02:29]} Rcd8 {[%emt 0:02:27]} 22. Rc2 {[%emt 0:03:02]} Nb6 {[%emt 0:01:56]} 23. exf6 {[%emt 0:03:06]} gxf6 {[%emt 0:00:10]} 24. Be3 {[%emt 0:01:09]} Nd5 {[%emt 0:04:24]} 25. Bd2 {[%emt 0:01:14]} Nb6 {[%emt 0:00:14]} 26. Be3 {[%emt 0:00:30]} Nd5 {[%emt 0:00:15]} 27. Bd2 {[%emt 0:00:34]} Nb6 {[%emt 0:00:24]} 1/2-1/2

[Event "4NCL Div 2 2024-25"]
[Site "England"]
[Date "2024.11.23"]
[Round "1.22"]
[White "Wills, Tom"]
[Black "Goh, Jinghan Cameron"]
[Result "1-0"]
[ECO "D02"]
[WhiteElo "1976"]
[BlackElo "2017"]
[Annotator "NA RC"]
[PlyCount "65"]
[EventDate "2024.11.23"]
[EventType "team-tourn"]
[EventCountry "ENG"]
[SourceTitle "playchess.com"]
[Source "ChessBase"]
[SourceQuality "1"]
[TimeControl "40/6000+30:3000+30"]

1. Nf3 {[%emt 0:10:05]} Nf6 {[%emt 0:10:15]} 2. g3 {[%emt 0:00:06]} d5 {[%emt 0:00:19]} 3. Bg2 {[%emt 0:00:24]} c5 {[%emt 0:00:05]} 4. O-O {[%emt 0:00:55]} h6 {[%emt 0:00:54]} 5. d4 {[%emt 0:12:57]} cxd4 {[%emt 0:00:12]} 6. Bf4 {[%emt 0:02:52]} e6 {[%emt 0:01:03]} 7. Nxd4 {[%emt 1:16:41]} g5 {[%emt 0:00:04]} 8. Bc1 {[%emt 0:00:00]} e5 {[%emt 0:01:48]} 9. Nf3 {[%emt 0:00:00]} Nc6 {[%emt 0:00:37]} 10. b3 {[%emt 0:00:00]} Bc5 {[%emt 0:03:36]} 11. Bb2 {[%emt 0:00:00]} Qe7 {[%emt 0:01:42]} 12. e3 {[%emt 0:00:00]} Bg4 {[%emt 0:06:28]} 13. Qe1 {[%emt 0:00:00]} Rg8 {[%emt 0:20:26]} 14. c4 {[%emt 0:00:00]} e4 {[%emt 0:11:16]} 15. Nd4 {[%emt 0:00:00]} Ne5 {[%emt 0:05:17]} 16. Qc3 {[%emt 0:00:00]} Bb4 {[%emt 0:02:18]} 17. Qc2 {[%emt 0:00:00]} Rc8 {[%emt 0:03:06]} 18. h3 {[%emt 0:00:00]} Bd7 {[%emt 0:01:43]} 19. Qe2 {[%emt 0:00:00]} dxc4 {[%emt 0:02:22]} 20. Rc1 {[%emt 0:00:00]} b5 {[%emt 0:01:40]} 21. bxc4 {[%emt 0:00:05]} Nd3 {[%emt 0:06:58]} 22. Rd1 {[%emt 0:00:58]} Rxc4 {[%emt 0:03:14]} 23. Rxd3 {[%emt 0:00:50]} exd3 {[%emt 0:01:20]} 24. Qxd3 {[%emt 0:00:09]} Rg6 {[%emt 0:15:14]} 25. a4 {[%emt 0:00:44]} a5 {[%emt 0:04:00]} 26. axb5 {[%emt 0:00:49]} Qc5 {[%emt 0:01:21]} 27. Na3 {[%emt 0:00:57]} Bxa3 {[%emt 0:04:43]} 28. Bxa3 {[%emt 0:00:05]} Rxd4 {[%emt 0:00:31]} 29. exd4 {[%emt 0:02:05]} Qxb5 {[%emt 0:00:11]} 30. Re1+ {[%emt 0:00:27]} Kd8 {[%emt 0:00:23]} 31. Be7+ {[%emt 0:00:05]} Kc8 {[%emt 0:00:32]} 32. Rc1+ {[%emt 0:00:08]} Kb8 {[%emt 0:00:11]} 33. Rb1 {[%emt 0:00:09]} 1-0

[Event "4NCL Div 2 2024-25"]
[Site "England"]
[Date "2024.11.23"]
[Round "1.23"]
[White "Chan, Nevil"]
[Black "Edwards-Wright, Miles D"]
[Result "0-1"]
[ECO "B06"]
[WhiteElo "2011"]
[BlackElo "1970"]
[Annotator "NA RC"]
[PlyCount "80"]
[EventDate "2024.11.23"]
[EventType "team-tourn"]
[EventCountry "ENG"]
[SourceTitle "playchess.com"]
[Source "ChessBase"]
[SourceQuality "1"]
[TimeControl "40/6000+30:3000+30"]

1. d4 {[%emt 0:10:33]} g6 {[%emt 0:10:04]} 2. Nc3 {[%emt 0:01:42]} Bg7 {[%emt 0:00:03]} 3. Nf3 {[%emt 0:01:25]} d6 {[%emt 0:00:09]} 4. e4 {[%emt 0:00:52]} a6 {[%emt 0:00:28]} 5. a4 {[%emt 0:00:59]} b6 {[%emt 0:02:33]} 6. Be2 {[%emt 0:11:56]} Bb7 {[%emt 0:00:05]} 7. Be3 {[%emt 0:03:54]} Nd7 {[%emt 0:00:12]} 8. O-O {[%emt 0:00:50]} h6 {[%emt 0:03:01]} 9. Nd2 {[%emt 0:06:12]} e6 {[%emt 0:06:28]} 10. f4 {[%emt 0:10:38]} Ne7 {[%emt 0:00:02]} 11. Bf3 {[%emt 0:00:58]} O-O {[%emt 0:01:10]} 12. Ne2 {[%emt 0:00:53]} f5 {[%emt 0:19:58]} 13. e5 {[%emt 0:14:00]} Bxf3 {[%emt 0:02:30]} 14. Nxf3 {[%emt 0:00:39]} Nd5 {[%emt 0:05:43]} 15. Qd2 {[%emt 0:04:22]} b5 {[%emt 0:02:05]} 16. Nc3 {[%emt 0:04:00]} N7b6 {[%emt 0:00:55]} 17. Nxd5 {[%emt 0:01:30]} Nxd5 {[%emt 0:00:16]} 18. Rfe1 {[%emt 0:06:00]} Qd7 {[%emt 0:09:27]} 19. a5 {[%emt 0:06:13]} Rad8 {[%emt 0:01:09]} 20. c3 {[%emt 0:04:37]} Qf7 {[%emt 0:08:54]} 21. Qe2 {[%emt 0:00:46]} Rfe8 {[%emt 0:05:23]} 22. g3 {[%emt 0:00:21]} Qd7 {[%emt 0:11:32]} 23. Bf2 {[%emt 0:00:39]} Qc6 {[%emt 0:00:31]} 24. Nd2 {[%emt 0:01:45]} h5 {[%emt 0:02:49]} 25. h4 {[%emt 0:00:29]} dxe5 {[%emt 0:00:48]} 26. dxe5 {[%emt 0:00:51]} Bf8 {[%emt 0:00:27]} 27. Nf3 {[%emt 0:00:47]} Bc5 {[%emt 0:02:13]} 28. Red1 {[%emt 0:06:35]} Ne7 {[%emt 0:02:02]} 29. Rxd8 {[%emt 0:01:22]} Rxd8 {[%emt 0:14:03]} 30. Rd1 {[%emt 0:00:21]} Bxf2+ {[%emt 0:00:00]} 31. Kxf2 {[%emt 0:00:18]} Qc5+ {[%emt 0:00:00]} 32. Kg2 {[%emt 0:01:55]} Nd5 {[%emt 0:00:00]} 33. Rd4 {[%emt 0:00:28]} Qe7 {[%emt 0:00:00]} 34. Ng5 {[%emt 0:01:31]} c5 {[%emt 0:00:00]} 35. Rd2 {[%emt 0:00:26]} Qb7 {[%emt 0:00:00]} 36. Kg1 {[%emt 0:00:43]} Qd7 {[%emt 0:00:00]} 37. Qf2 {[%emt 0:01:16]} Qe7 {[%emt 0:00:00]} 38. Kh2 {[%emt 0:01:07]} Rd7 {[%emt 0:00:20]} 39. Kg1 {[%emt 0:02:03]} Kf8 {[%emt 0:00:10]} 40. Qxc5 {[%emt 0:00:55]} Qxc5+ {[%emt 0:05:00]} 0-1

[Event "4NCL Div 2 2024-25"]
[Site "England"]
[Date "2024.11.23"]
[Round "1.24"]
[White "Jaufarally, Nadia"]
[Black "Alldritt, Nigel R E"]
[Result "1/2-1/2"]
[ECO "C18"]
[WhiteElo "1929"]
[BlackElo "1898"]
[Annotator "NA RC"]
[PlyCount "69"]
[EventDate "2024.11.23"]
[EventType "team-tourn"]
[EventCountry "ENG"]
[SourceTitle "playchess.com"]
[Source "ChessBase"]
[SourceQuality "1"]
[TimeControl "40/6000+30:3000+30"]

1. e4 {[%emt 0:10:11]} e6 {[%emt 0:10:08]} 2. d4 {[%emt 0:00:08]} d5 {[%emt 0:00:07]} 3. Nc3 {[%emt 0:00:13]} Bb4 {[%emt 0:00:09]} 4. e5 {[%emt 0:00:09]} c5 {[%emt 0:00:13]} 5. a3 {[%emt 0:00:07]} Bxc3+ {[%emt 0:00:13]} 6. bxc3 {[%emt 0:00:08]} Ne7 {[%emt 0:00:08]} 7. Qg4 {[%emt 0:00:23]} O-O {[%emt 0:00:18]} 8. Bd3 {[%emt 0:01:34]} f5 {[%emt 0:00:13]} 9. exf6 {[%emt 0:00:16]} Rxf6 {[%emt 0:00:10]} 10. Bg5 {[%emt 0:00:13]} Rf7 {[%emt 0:00:10]} 11. Qh5 {[%emt 0:01:16]} g6 {[%emt 0:00:13]} 12. Qd1 {[%emt 0:00:59]} Qa5 {[%emt 0:01:14]} 13. Bd2 {[%emt 0:00:23]} Nd7 {[%emt 0:01:09]} 14. Nf3 {[%emt 0:00:56]} c4 {[%emt 0:00:52]} 15. Be2 {[%emt 0:00:11]} Nc6 {[%emt 0:00:41]} 16. h4 {[%emt 0:02:08]} Nf6 {[%emt 0:01:25]} 17. Ng5 {[%emt 0:02:20]} Re7 {[%emt 0:06:42]} 18. h5 {[%emt 0:05:36]} h6 {[%emt 1:25:25]} 19. Nh3 {[%emt 0:29:05]} g5 {[%emt 0:00:00]} 20. Kf1 {[%emt 0:10:34]} Bd7 {[%emt 0:00:00]} 21. Kg1 {[%emt 0:08:20]} Rf8 {[%emt 0:00:00]} 22. f4 {[%emt 0:03:06]} Ne4 {[%emt 0:00:00]} 23. Bf3 {[%emt 0:02:34]} g4 {[%emt 0:00:00]} 24. Bxe4 {[%emt 0:08:43]} gxh3 {[%emt 0:00:00]} 25. Bg6 {[%emt 0:03:30]} hxg2 {[%emt 0:00:00]} 26. Rh2 {[%emt 0:00:30]} Rg7 {[%emt 0:00:00]} 27. Rxg2 {[%emt 0:01:00]} Ne7 {[%emt 0:00:00]} 28. Qe2 {[%emt 0:03:53]} Nxg6 {[%emt 0:00:00]} 29. hxg6 {[%emt 0:00:19]} Rf5 {[%emt 0:00:00]} 30. Kf2 {[%emt 0:01:30]} Qd8 {[%emt 0:00:00]} 31. Rh1 {[%emt 0:00:32]} Qf6 {[%emt 0:00:00]} 32. Kg1 {[%emt 0:02:56]} h5 {[%emt 0:00:00]} 33. Rxh5 {[%emt 0:00:48]} Rxh5 {[%emt 0:00:00]} 34. Qxh5 {[%emt 0:00:05]} Be8 {[%emt 0:00:00]} 35. Kf1 {[%emt 0:13:24]} 1/2-1/2

[Event "4NCL Div 2 2024-25"]
[Site "England"]
[Date "2024.11.23"]
[Round "1.25"]
[White "Starosta, Martyna"]
[Black "Rees, Ioan"]
[Result "0-1"]
[ECO "C18"]
[WhiteElo "2309"]
[BlackElo "2251"]
[Annotator "RC"]
[PlyCount "96"]
[EventDate "2024.11.23"]
[EventType "team-tourn"]
[EventCountry "ENG"]
[SourceTitle "playchess.com"]
[Source "ChessBase"]
[SourceQuality "1"]
[TimeControl "40/6000+30:3000+30"]

1. e4 {[%emt 0:10:02]} e6 {[%emt 0:11:53]} 2. d4 {[%emt 0:00:05]} d5 {[%emt 0:00:05]} 3. Nc3 {[%emt 0:00:05]} Bb4 {[%emt 0:01:41]} 4. e5 {[%emt 0:00:07]} c5 {[%emt 0:00:06]} 5. a3 {[%emt 0:00:04]} Bxc3+ {[%emt 0:00:04]} 6. bxc3 {[%emt 0:00:06]} Ne7 {[%emt 0:00:28]} 7. h4 {[%emt 0:00:07]} Qc7 {[%emt 0:00:42]} 8. h5 {[%emt 0:00:41]} h6 {[%emt 0:00:08]} 9. Bd3 {[%emt 0:04:06]} Nbc6 {[%emt 0:05:04]} 10. Nf3 {[%emt 0:04:46]} c4 {[%emt 0:07:02]} 11. Be2 {[%emt 0:01:03]} Qa5 {[%emt 0:00:07]} 12. Bd2 {[%emt 0:02:17]} Bd7 {[%emt 0:00:12]} 13. Qc1 {[%emt 0:09:36]} O-O-O {[%emt 0:07:13]} 14. Qb2 {[%emt 0:02:22]} Rdg8 {[%emt 0:06:50]} 15. O-O-O {[%emt 0:02:15]} Kb8 {[%emt 0:05:54]} 16. Rdg1 {[%emt 0:05:11]} Nc8 {[%emt 0:00:31]} 17. g4 {[%emt 0:03:15]} Nb6 {[%emt 0:00:34]} 18. g5 {[%emt 0:08:28]} Na4 {[%emt 0:00:13]} 19. Qa1 {[%emt 0:00:20]} hxg5 {[%emt 0:01:46]} 20. Nxg5 {[%emt 0:01:22]} Be8 {[%emt 0:02:34]} 21. Rh3 {[%emt 0:10:40]} Qd8 {[%emt 0:05:19]} 22. Rhg3 {[%emt 0:02:20]} Ne7 {[%emt 0:01:48]} 23. Bg4 {[%emt 0:04:39]} a5 {[%emt 0:03:25]} 24. Kb1 {[%emt 0:03:03]} Nc8 {[%emt 0:04:39]} 25. Ka2 {[%emt 0:03:06]} Qe7 {[%emt 0:01:45]} 26. Nh3 {[%emt 0:06:21]} Na7 {[%emt 0:04:54]} 27. Nf4 {[%emt 0:01:44]} Nb5 {[%emt 0:01:49]} 28. Qc1 {[%emt 0:00:21]} Bd7 {[%emt 0:04:33]} 29. Bd1 {[%emt 0:05:51]} Qf8 {[%emt 0:06:34]} 30. Be2 {[%emt 0:03:54]} Ka7 {[%emt 0:02:11]} 31. Bd1 {[%emt 0:01:04]} Rh7 {[%emt 0:07:00]} 32. Be2 {[%emt 0:01:18]} Qe7 {[%emt 0:02:55]} 33. Bd1 {[%emt 0:03:31]} Rc8 {[%emt 0:02:07]} 34. Ne2 {[%emt 0:09:22]} Qf8 {[%emt 0:03:10]} 35. h6 {[%emt 0:01:08]} gxh6 {[%emt 0:00:45]} 36. Nf4 {[%emt 0:00:58]} f6 {[%emt 0:05:48]} 37. Ng6 {[%emt 0:00:46]} Qd8 {[%emt 0:00:42]} 38. exf6 {[%emt 0:01:14]} Qxf6 {[%emt 0:00:38]} 39. Rf3 {[%emt 0:00:22]} Qd8 {[%emt 0:00:50]} 40. Ne5 {[%emt 0:00:24]} Be8 {[%emt 0:02:55]} 41. Rg8 {[%emt 0:23:28]} Qe7 {[%emt 0:27:02]} 42. Ng6 {[%emt 0:08:43]} Qc7 {[%emt 0:03:36]} 43. Rff8 {[%emt 0:10:31]} Nbxc3+ {[%emt 0:04:58]} 44. Ka1 {[%emt 0:02:17]} Nxd1 {[%emt 0:05:55]} 45. Qxd1 {[%emt 0:00:55]} Rg7 {[%emt 0:05:15]} 46. Ne5 {[%emt 0:05:49]} Rxg8 {[%emt 0:00:30]} 47. Rxg8 {[%emt 0:00:05]} Qb6 {[%emt 0:00:45]} 48. Bc1 {[%emt 0:00:12]} Nc3 {[%emt 0:00:15]} 0-1